[Event "Czech Youth Championship Open 2023"]
[Site "Teplice"]
[Date "2023.03.14"]
[Round "5.3"]
[White "Matejovsky, Ondrej"]
[Black "Pressler, Tobias"]
[Result "1-0"]
[ECO "C01"]
[WhiteElo "1931"]
[BlackElo "2096"]
[Annotator "TA"]
[PlyCount "137"]
[EventDate "2023.03.09"]
[EventType "swiss"]
[EventCountry "CZE"]
[SourceTitle "playchess.com"]
[Source "ChessBase"]
[SourceQuality "1"]
[TimeControl "5400+30"]

{[%evp 10,135,0,0,7,12,18,0,0,0,39,12,29,15,3,0,1,-17,-6,-40,-14,-16,-8,-34,-25,-34,-4,-12,-8,-16,-9,-22,0,0,8,0,225,227,217,221,295,295,300,196,319,315,370,380,372,316,308,202,280,294,287,275,283,191,201,207,264,225,220,158,185,186,295,287,295,304,323,310,306,267,398,397,425,347,343,343,704,669,1677,295,313,280,662,459,445,425,558,522,525,534,574,497,761,280,389,0,778,508,774,255,1741,1734,1295,1156,1825,1825,1737,1389,1056,1042,29984,29985,29985,29986,29991,29992,29994,29995,29995,29996,29996,29997,29997,29997]} 1. e4 {[%emt 0:00:04]} e6 {[%emt 0:00:36]} 2. d4 {[%emt 0:00:09]} d5 {[%emt 0:00:35]} 3. exd5 {[%emt 0:00:19]} exd5 {[%emt 0:00:13]} 4. Bd3 {[%emt 0:00:08]} c5 {[%emt 0:00:43]} 5. c3 {[%emt 0:00:50]} cxd4 {[%emt 0:00:48]} 6. cxd4 {[%emt 0:00:16]} Bd6 {[%emt 0:01:46] C01: French: Exchange Variation.} 7. Nc3 {[%emt 0:01:42]} Be6 {[%emt 0:01:54]} 8. Nf3 {[%emt 0:02:21]} Ne7 {[%emt 0:01:30] The position is equal.} 9. O-O {[%emt 0:04:24] [#]} h6 $146 {[%emt 0:00:08] Prevents Ng5.} ({Predecessor:} 9... O-O 10. Bxh7+ Kxh7 11. Ng5+ Kg6 12. h4 Rh8 13. f4 Nf5 14. g4 Ng3 15. f5+ Bxf5 16. gxf5+ {1-0 Calcina,J-Bowen,P Checkmate Covid Rematch blitz 2021}) 10. Nb5 {[%emt 0:03:55]} O-O {[%emt 0:01:11]} 11. Nxd6 {[%emt 0:00:43]} (11. Ne5 {feels hotter.} f6 12. Ng6 Nxg6 13. Bxg6 Nc6 14. Re1) 11... Qxd6 {[%emt 0:00:04]} 12. h3 {[%emt 0:04:30]} Nbc6 {[%emt 0:00:21]} 13. Be3 {[%emt 0:01:47]} Bf5 {[%emt 0:02:25]} 14. a3 {[%emt 0:03:32]} Rac8 {[%emt 0:03:25]} 15. Bxf5 {[%emt 0:21:36]} Nxf5 {[%emt 0:00:13]} 16. Qd2 {[%emt 0:00:29]} (16. Qd3 {looks sharper.} Qg6 17. Rad1 Rfe8 18. Ne5) 16... Qf6 {[%emt 0:05:36]} 17. Qd3 {[%emt 0:05:43]} b6 {[%emt 0:16:34]} 18. Rac1 {[%emt 0:03:15]} Rfe8 {[%emt 0:03:05]} 19. Rfe1 {[%emt 0:06:13]} Nd6 {[%emt 0:05:16]} 20. Nd2 {[%emt 0:02:09]} Re7 {[%emt 0:15:36]} 21. Rc2 {[%emt 0:05:51]} Nf5 {[%emt 0:14:51][%cal Rf5d4]} 22. Nf3 {[%emt 0:00:57]} Rce8 $2 {[%emt 0:00:57] [#] Black is on the road to losing.} (22... Ree8 $11 {and Black stays safe.}) 23. Rxc6 $1 $18 {[%emt 0:01:26][%mdl 576] Deflection} Qxc6 {[%emt 0:00:14]} 24. Qxf5 {[%emt 0:00:07]} Qc4 {[%emt 0:00:56]} 25. Rc1 {[%emt 0:04:45]} Qb3 {[%emt 0:00:39]} 26. Qc2 {[%emt 0:02:26]} Qb5 {[%emt 0:00:17]} (26... Rxe3 $2 27. fxe3 Qxe3+ 28. Kh1 $18) (26... Qxc2 $142 27. Rxc2 Kh7) 27. b4 {[%emt 0:01:00]} f6 {[%emt 0:00:40]} 28. Nh4 {[%emt 0:05:33]} Re4 {[%emt 0:01:56]} 29. Ng6 {[%emt 0:02:56] Strongly threatening Qc7.} Qd7 {[%emt 0:02:30]} 30. Qc6 {[%emt 0:02:09]} Qf7 {[%emt 0:01:19]} 31. Nf4 {[%emt 0:01:06][%cal Bg6f4,Bf4d3,Bd3b4,Bb4c6][%mdl 32]} Rd8 {[%emt 0:00:08]} 32. Qc7 {[%emt 0:00:54]} Qe8 {[%emt 0:00:54]} 33. Rc3 {[%emt 0:01:47]} (33. Qxa7 Rxe3 34. Rc7 Re1+ 35. Kh2 Ra8 36. Qxb6 (36. Rxg7+ Kf8 $16) 36... Re7 $16) 33... Re7 {[%emt 0:01:02]} 34. Qc6 {[%emt 0:00:22]} Qf7 {[%emt 0:00:11]} 35. Qb5 {[%emt 0:01:57]} g5 {[%emt 0:01:20]} 36. Nd3 {[%emt 0:01:56]} Kg7 {[%emt 0:00:24]} 37. Qa4 {[%emt 0:01:26]} Qh5 {[%emt 0:03:46]} (37... Rc7 $142 38. Rxc7 Qxc7) 38. Qc2 {[%emt 0:01:35]} Qf7 {[%emt 0:00:44]} 39. b5 {[%emt 0:00:31]} Rd6 {[%emt 0:01:05]} 40. Nb4 {[%emt 0:00:28]} Rdd7 {[%emt 0:01:08]} 41. Qf5 {[%emt 0:00:38]} Re8 {[%emt 0:01:30]} (41... Qg6 {keeps fighting.} 42. Qf3 Qb1+ 43. Kh2 Qe4) 42. Rc6 {[%emt 0:01:09]} Ree7 {[%emt 0:00:56]} 43. Rc8 {[%emt 0:01:13]} Rd6 {[%emt 0:00:27]} 44. Nc6 {[%emt 0:00:37]} Red7 {[%emt 0:00:20]} (44... Re8 45. Rxe8 Qxe8 46. Nxa7 Qd7 47. Qxd7+ Rxd7) 45. Bd2 {[%emt 0:00:53]} Rc7 {[%emt 0:02:24]} 46. Rxc7 {[%emt 0:00:51]} (46. Ne5 Rdd7 47. Nxf7 Rxf7 48. Rd8) 46... Qxc7 {[%emt 0:00:06]} 47. Bb4 {[%emt 0:01:26]} Rd7 $2 {[%emt 0:00:04]} (47... Qd7 48. Qc2 Re6) 48. h4 {[%emt 0:01:23] Threatens to win with h5.} a5 {[%emt 0:00:05]} 49. Bd2 {[%emt 0:00:58]} Qd6 {[%emt 0:00:30]} 50. h5 {[%emt 0:00:25]} Kh8 {[%emt 0:00:06]} 51. f4 {[%emt 0:01:05][%cal Rf4g5] Hoping for fxg5.} Rc7 {[%emt 0:01:43]} 52. fxg5 {[%emt 0:00:31]} hxg5 {[%emt 0:00:15]} (52... fxg5 $142 53. Qe5+ Qxe5 54. dxe5 d4) 53. Qg6 $2 {[%emt 0:00:56]} (53. h6 Rd7 54. a4) 53... Qf8 {[%emt 0:00:52]} 54. Qf5 $2 {[%emt 0:00:44]} (54. a4) 54... Qd6 $1 {[%emt 0:00:14]} 55. Be1 {[%emt 0:00:56]} Rf7 {[%emt 0:00:54]} (55... Rg7 $142 56. a4 Rg8) 56. a4 $2 {[%emt 0:00:24]} (56. Ne5 Rc7 57. Bg3) 56... Rd7 {[%emt 0:01:36] [#]} (56... Qd7 57. Qg6 Qe6) 57. Bg3 $1 {[%emt 0:00:35][%mdl 576] Deflection} Qxg3 {[%emt 0:00:06]} 58. Qxd7 {[%emt 0:00:11]} Qe1+ {[%emt 0:00:07]} 59. Kh2 {[%emt 0:00:04][%cal Oc6e7]} Qh4+ {[%emt 0:00:12]} 60. Qh3 {[%emt 0:00:10]} Qf4+ {[%emt 0:00:39]} 61. Qg3 {[%emt 0:00:13] Qxf4 would kill now.} Qd2 {[%emt 0:00:14]} 62. Qb8+ {[%emt 0:00:44] ?ev?.} Kg7 {[%emt 0:00:16]} 63. Ne7 {[%emt 0:00:37]} ({Weaker is} 63. Qxb6 Qf4+ 64. g3 Qf2+ 65. Kh1 (65. Kh3 Qf1+ 66. Kh2 Qf2+ 67. Kh3 Qf1+ 68. Kh2 Qf2+ $11) 65... Qf1+ 66. Kh2 Qf2+ 67. Kh3 Qf1+ 68. Kh2 Qf2+ $11) 63... Kf7 {[%emt 0:00:27]} 64. Ng6 {[%emt 0:01:02]} Qxd4 {[%emt 0:00:40]} 65. Qf8+ {[%emt 0:00:29]} Ke6 {[%emt 0:00:04]} 66. Qc8+ {[%emt 0:00:33]} Kf7 {[%emt 0:00:15]} 67. Qd7+ {[%emt 0:00:14]} Kg8 {[%emt 0:00:08]} 68. h6 {[%emt 0:00:24][%csl Gd7][%cal Bh5h6,Bh6h7][%mdl 32]} f5 {[%emt 0:00:06]} 69. h7# {[%emt 0:00:14] An exciting game.   Weighted Error Value: White=0.66/Black=0.54} 1-0

[Event "Czech Youth Championship Open 2023"]
[Site "Teplice"]
[Date "2023.03.14"]
[Round "5.4"]
[White "Pycha, Patrik"]
[Black "Juracak, David"]
[Result "1/2-1/2"]
[ECO "C42"]
[WhiteElo "2029"]
[BlackElo "1820"]
[Annotator "TA"]
[PlyCount "98"]
[EventDate "2023.03.09"]
[EventType "swiss"]
[EventCountry "CZE"]
[SourceTitle "playchess.com"]
[Source "ChessBase"]
[SourceQuality "1"]
[TimeControl "5400+30"]

{[%evp 9,98,-32,-26,-38,-38,-9,-25,-28,-21,-35,0,-97,-80,-129,-116,-120,-125,-143,-153,-237,-211,-212,-212,-286,-277,-257,-251,-255,-250,-247,-200,-199,-199,-261,-205,-202,-175,-173,-170,-166,-166,-189,-175,-175,-168,-186,-188,-185,-173,-177,-167,-169,-167,-181,-152,-177,-175,-192,-192,-193,-48,-56,-29,-29,-23,-145,-137,-139,-141,-192,-192,-193,-192,-204,-194,-194,-192,-193,-191,-193,0,-193,-192,-203,-190,-192,-185,-185,-185,-187,-122]} 1. e4 {[%emt 0:00:03]} e5 {[%emt 0:00:04]} 2. Nf3 {[%emt 0:00:07]} Nf6 {[%emt 0:00:05]} 3. Nxe5 {[%emt 0:00:05]} d6 {[%emt 0:00:06]} 4. Nxf7 {[%emt 0:00:46]} Kxf7 {[%emt 0:00:05]} 5. Nc3 {[%emt 0:00:07]} c5 {[%emt 0:00:26]} 6. Bc4+ {[%emt 0:00:31] C42: Petroff Defence: 3 Nxe5 and unusual White 3rd moves.} Be6 {[%emt 0:00:12]} 7. Bxe6+ {[%emt 0:00:05]} Kxe6 {[%emt 0:00:04]} 8. d4 $1 {[%emt 0:00:55] Black has an edge.} (8. Qf3 Nc6 9. b3 (9. Qf5+ $2 Kf7 $19) 9... Be7 $17) 8... Kf7 {[%emt 0:00:08]} 9. dxc5 {[%emt 0:00:09]} Nc6 {[%emt 0:00:05]} 10. cxd6 {[%emt 0:03:35] [#]} (10. Qe2 $11) 10... Qxd6 $146 {[%emt 0:01:34]} ({Predecessor:} 10... Bxd6 11. O-O Re8 12. Bg5 h6 13. Bxf6 Qxf6 14. f4 Rad8 15. Qe2 Bb4 16. e5 Bxc3 17. bxc3 {0-1 Hrabusa,M (2250)-Maros,M (2307) SVK-chT 0809 2008 (11)}) 11. Qe2 {[%emt 0:00:50]} (11. Qxd6 $142 Bxd6 12. Bg5) 11... Rd8 {[%emt 0:03:13]} 12. O-O {[%emt 0:00:21]} Nd4 {[%emt 0:01:39]} 13. Qc4+ {[%emt 0:02:12]} Qe6 $1 {[%emt 0:00:14]} 14. Nd5 {[%emt 0:07:17]} (14. Qxe6+ $17 Kxe6 15. Bg5) 14... Nxe4 {[%emt 0:02:54]} 15. Qxd4 {[%emt 0:01:57] c4 would be deadly.} Qxd5 {[%emt 0:00:23]} 16. Qe3 {[%emt 0:02:43]} Bc5 {[%emt 0:01:26]} 17. Qf4+ {[%emt 0:00:27]} Nf6 {[%emt 0:00:24]} (17... Kg8 18. Be3 $19) 18. Be3 {[%emt 0:09:10]} Bxe3 {[%emt 0:12:11]} 19. Qxe3 {[%emt 0:00:09]} Rhe8 {[%emt 0:00:22][%cal Bh8e8,Be8e2,Be2a2][%mdl 32]} 20. Qxa7 {[%emt 0:00:51] White is weak on the light squares} Re2 {[%emt 0:00:46]} 21. c4 {[%emt 0:00:45]} (21. Qa4 {was necessary.}) 21... Qc6 {[%emt 0:09:41][%cal Od8d2]} (21... Qxc4 $2 22. Qxb7+ Rd7 23. b3 $17) 22. b4 {[%emt 0:01:57]} Qxc4 {[%emt 0:02:24]} 23. Qxb7+ {[%emt 0:01:16]} Rd7 {[%emt 0:02:30]} 24. Qf3 {[%emt 0:02:52]} Rxa2 {[%emt 0:00:07]} 25. Rab1 {[%emt 0:02:26]} Ra4 {[%emt 0:04:16]} 26. b5 {[%emt 0:00:46]} Rb4 {[%emt 0:00:31]} 27. Rxb4 {[%emt 0:03:31]} Qxb4 {[%emt 0:00:06]} 28. Qc6 {[%emt 0:01:16]} Qd6 {[%emt 0:00:13]} 29. Qc2 Rb7 {[%emt 0:01:14]} 30. Rb1 {[%emt 0:09:12]} Qd5 {[%emt 0:02:17]} 31. b6 {[%emt 0:06:45]} Qe6 {[%emt 0:02:28]} 32. h3 {[%emt 0:01:17]} h6 {[%emt 0:01:49]} ({Much less strong is} 32... Rxb6 33. Qc7+ Nd7 34. Rxb6 Qxb6 35. Qxd7+ Kf6 36. g4 $16) 33. Rb5 {[%emt 0:18:09]} Nd7 {[%emt 0:13:49]} ({But not} 33... Rxb6 34. Qc7+ Nd7 35. Rxb6 Qxb6 36. Qxd7+ Kf6 37. Qg4 $16) 34. Rf5+ {[%emt 0:03:42]} Ke7 {[%emt 0:00:18]} ({Black should play} 34... Kg8 $1 $19 35. Qc8+ Kh7 36. Qxb7 Qxf5) 35. Rf3 $1 $15 {[%emt 0:00:56]} Qe1+ {[%emt 0:03:39]} (35... Nxb6 $2 36. Re3 $18) (35... Kd8 $5 36. Qc3 Rxb6 37. Qxg7 Rb1+ 38. Kh2 Qd6+ 39. Qg3 Qxg3+ 40. Rxg3 Rb6 $17) 36. Kh2 {[%emt 0:00:14]} Qe5+ {[%emt 0:00:04]} (36... Nxb6 $2 37. Qc5+ Kd8 38. Rf8+ $18) 37. Kg1 {[%emt 0:01:19] [#]} (37. g3 $11 Kd8 38. Rf7) 37... Qa1+ $1 $17 {[%emt 0:00:59]} (37... Nxb6 $2 38. Re3 $18) 38. Kh2 {[%emt 0:00:15]} Rxb6 {[%emt 0:00:11]} (38... Nxb6 39. Qc5+ Kd7 40. Rf7+ Ke6 41. Rxb7 $18) 39. g3 {[%emt 0:05:19]} ({Don't go for} 39. Qc4 $2 Qe5+ 40. g3 Rf6 41. Rxf6 Nxf6) (39. Qh7 $17 {was worth a try.}) 39... Rf6 $19 {[%emt 0:07:28]} 40. Re3+ {[%emt 0:00:27]} Re6 {[%emt 0:00:16] aiming for ...Rxe3.} 41. Rd3 Re1 {[%emt 0:01:07] And now ...Rh1+ would win.} 42. Qc6 {[%emt 0:07:40] Prevents Rh1+} Qa7 {[%emt 0:01:52]} 43. Qd6+ {[%emt 0:01:48]} Ke8 {[%emt 0:01:55][%cal Ra7f2]} 44. Qg6+ {[%emt 0:01:00]} Kd8 $2 {[%emt 0:00:48]} ({Black should try} 44... Kf8 $19 {[%cal Ra7f2]} 45. Qd6+ Kg8) 45. Qf5 {[%emt 0:02:27] [#]} (45. Qf7 $11 {and White is okay.}) 45... Ke7 $1 {[%emt 0:02:54] Strongly threatening ...Ne5. Black is clearly better.} 46. Qf4 {[%emt 0:01:03] Qb4+ is the strong threat.} Re6 {[%emt 0:00:22]} 47. Rd2 {[%emt 0:01:08]} Rf6 {[%emt 0:00:52]} 48. Qe4+ {[%emt 0:00:24]} Kf8 {[%emt 0:00:31]} 49. f4 {[%emt 0:00:20]} Ra6 {[%emt 0:03:15] Weighted Error Value: White=0.23 (precise) /Black=0.17 (very precise)} (49... Rf7 $19 50. Qd4 Qc7 51. Qd6+ Qxd6 52. Rxd6 Nf6 53. Rd8+ Ke7) 1/2-1/2

[Event "Czech Youth Championship Open 2023"]
[Site "Teplice"]
[Date "2023.03.14"]
[Round "5.5"]
[White "Pavlis, Matej"]
[Black "Hlavac, Rudolf"]
[Result "1-0"]
[ECO "D85"]
[WhiteElo "1868"]
[BlackElo "1985"]
[Annotator "TA"]
[PlyCount "55"]
[EventDate "2023.03.09"]
[EventType "swiss"]
[EventCountry "CZE"]
[SourceTitle "playchess.com"]
[Source "ChessBase"]
[SourceQuality "1"]
[TimeControl "5400+30"]

{[%evp 16,55,-5,0,40,36,45,22,27,15,35,61,70,34,52,47,77,79,102,64,152,131,139,137,133,116,256,245,275,275,355,355,510,506,504,500,667,643,1062,1077,1459,1417]} 1. d4 {[%emt 0:00:01]} Nf6 {[%emt 0:12:38]} 2. c4 {[%emt 0:00:18]} g6 {[%emt 0:00:14]} 3. Nc3 {[%emt 0:00:29]} d5 {[%emt 0:00:25]} 4. cxd5 {[%emt 0:00:56]} Nxd5 {[%emt 0:00:18]} 5. e4 {[%emt 0:00:06]} Nxc3 {[%emt 0:00:08]} 6. bxc3 {[%emt 0:00:08]} Bg7 {[%emt 0:00:09]} 7. Bb5+ {[%emt 0:00:23]} c6 {[%emt 0:00:14]} 8. Ba4 {[%emt 0:00:16]} O-O {[%emt 0:00:17]} 9. Ne2 {[%emt 0:00:33]} Qc7 {[%emt 0:07:00] D85: Exchange Grünfeld: Unusual White 7th moves and lines with 7 Nf3.} 10. O-O {[%emt 0:01:35] [#]} b6 $146 {[%emt 0:04:28]} ({Predecessor:} 10... Rd8 11. Bg5 b6 12. Rc1 c5 13. d5 Bf6 14. Be3 Bd7 15. f4 b5 16. Bc2 Bg4 17. h3 Bxe2 18. Qxe2 Bxc3 19. Qxb5 {1-0 Strutinskaya,G (2218)-Titorenko,N (2089) RUS-chT Seniors final 2019 (3.5)}) 11. Be3 {[%emt 0:03:18]} Nd7 {[%emt 0:07:35] The position is equal.} 12. Rc1 {[%emt 0:03:24]} c5 {[%emt 0:01:41]} 13. Nf4 {[%emt 0:04:30]} Bb7 {[%emt 0:03:34]} 14. f3 {[%emt 0:02:16]} (14. e5 $5 {[%cal Re5e6]}) 14... c4 {[%emt 0:06:39]} 15. e5 {[%emt 0:01:49]} e6 {[%emt 0:02:40]} 16. h4 {[%emt 0:02:33]} Rfd8 {[%emt 0:00:50][%cal Od7e5]} 17. Qe1 {[%emt 0:01:44]} a6 {[%emt 0:01:10]} (17... Nxe5 $14 18. dxe5 Qxe5) 18. Qg3 {[%emt 0:01:20] White is more active.} b5 {[%emt 0:00:37]} 19. Bc2 {[%emt 0:00:11]} Nf8 {[%emt 0:03:59] [#]} 20. h5 $1 {[%emt 0:01:54]} Bd5 {[%emt 0:00:44] This move loses the game for Black.} (20... Rdb8 $16 {was called for.}) 21. hxg6 {[%emt 0:01:30]} fxg6 {[%emt 0:02:28]} 22. Nxd5 {[%emt 0:00:58]} exd5 {[%emt 0:04:26]} 23. f4 {[%emt 0:01:26]} Bh6 (23... Rab8 $142 24. f5 gxf5 25. Rxf5 b4 26. cxb4 Rxb4) 24. f5 $18 {[%emt 0:01:13] White is clearly winning.} Bxe3+ {[%emt 0:04:25]} 25. Qxe3 {[%emt 0:00:01]} gxf5 {[%emt 0:00:48]} 26. Rxf5 {[%emt 0:00:07] [#] Black must now prevent Rcf1.} Rd7 {[%emt 0:02:01]} 27. Rcf1 {[%emt 0:03:11] And now Qh6 would win.} Rg7 {[%emt 0:01:34]} 28. Qf3 {[%emt 0:01:40][%csl LRd5,LRf8] Weighted Error Value: White=0.07 (flawless) /Black=0.55} 1-0

[Event "Czech Youth Championship Open 2023"]
[Site "Teplice"]
[Date "2023.03.15"]
[Round "6.1"]
[White "Broz, Petr"]
[Black "Hlavac, Rudolf"]
[Result "1/2-1/2"]
[ECO "B30"]
[WhiteElo "1993"]
[BlackElo "1985"]
[Annotator "TA"]
[PlyCount "145"]
[EventDate "2023.03.09"]
[EventType "swiss"]
[EventCountry "CZE"]
[SourceTitle "playchess.com"]
[Source "ChessBase"]
[SourceQuality "1"]
[TimeControl "5400+30"]

{[%evp 14,145,31,29,45,10,8,18,33,39,41,39,39,34,36,39,37,37,37,25,29,21,27,24,33,0,21,16,39,39,33,35,42,20,62,69,101,99,156,44,41,44,106,0,0,0,0,0,0,0,0,-32,-8,-25,0,0,0,0,0,0,0,0,0,0,0,-31,8,8,8,0,0,0,0,0,0,0,0,0,0,0,0,0,0,0,0,0,0,0,0,0,0,0,0,0,0,0,0,0,0,0,0,0,0,0,0,0,0,0,0,0,0,0,0,0,0,0,0,0,0,0,0,0,0,0,8,8,8,8,8,8,8,8,8,0]} 1. e4 {[%emt 0:00:07]} c5 {[%emt 0:04:29]} 2. Nf3 {[%emt 0:06:22][%cal Bg1f3,Bf3d2,Bd2f1][%mdl 32]} Nc6 {[%emt 0:00:10]} 3. Nc3 {[%emt 0:00:04]} e5 {[%emt 0:00:37]} 4. Bc4 {[%emt 0:00:06]} Be7 {[%emt 0:00:17]} 5. d3 {[%emt 0:00:13]} d6 {[%emt 0:00:31]} 6. Nd2 {[%emt 0:00:06]} Nf6 {[%emt 0:03:22]} 7. Nf1 {[%emt 0:01:53]} O-O {[%emt 0:02:34]} 8. Ne3 {[%emt 0:00:30]} Na5 {[%emt 0:01:01] B30: Sicilian: 2...Nc6 3 Bb5, lines without ...g6.} 9. Bd5 {[%emt 0:02:21]} Nxd5 {[%emt 0:01:43]} 10. Ncxd5 {[%emt 0:00:08] [#]} f5 $146 {[%emt 0:03:05]} ({Predecessor:} 10... Be6 11. O-O Bg5 12. Nc3 Nc6 13. Ned5 Bxc1 14. Rxc1 Nd4 15. f4 exf4 16. Nxf4 Qg5 {1-0 Papadiamandis,E (2216)-Ochedzan,T (2098) EU-ch U14 Bratislava 2019 (7)}) 11. Nxf5 {[%emt 0:02:00]} Bxf5 {[%emt 0:00:18]} 12. exf5 {[%emt 0:00:03]} Rxf5 {[%emt 0:00:20]} 13. Qg4 {[%emt 0:00:11]} Rf7 {[%emt 0:00:32]} 14. O-O {[%emt 0:03:27]} Qc8 {[%emt 0:03:42]} 15. Qe4 {[%emt 0:03:47]} Nc6 {[%emt 0:05:13]} 16. Bd2 {[%emt 0:04:33]} Qd7 {[%emt 0:04:31]} 17. Rae1 {[%emt 0:01:46]} Raf8 {[%emt 0:01:44]} 18. a3 {[%emt 0:12:26]} Bd8 {[%emt 0:03:00]} (18... Nd4 {is more complex.} 19. c4 Nb3 20. Be3 Bd8) 19. f4 {[%emt 0:11:09]} g6 {[%emt 0:10:56]} 20. fxe5 {[%emt 0:02:45]} Rxf1+ {[%emt 0:01:59]} 21. Rxf1 {[%emt 0:00:05]} Rxf1+ {[%emt 0:00:19]} 22. Kxf1 {[%emt 0:00:05] Black must now prevent e6.} Nxe5 {[%emt 0:01:04]} 23. Bc3 {[%emt 0:02:52]} Ng4 {[%emt 0:07:31]} 24. Kg1 {[%emt 0:09:52]} Kf7 {[%emt 0:05:22] [#]} 25. h3 $1 {[%emt 0:03:06] White has more active pieces.} Nf6 {[%emt 0:03:02]} (25... Ne5 $142) 26. Qf3 {[%emt 0:00:07]} (26. Nxf6 $16 Bxf6 27. Qf3) 26... Qf5 $14 {[%emt 0:00:52]} 27. Nf4 {[%emt 0:04:10]} Be7 {[%emt 0:11:18] [#]} (27... Qc8 $14) 28. Bxf6 {[%emt 0:08:12]} ({White must play} 28. g4 $1 $16 {[%cal Rg4f5]} Qg5 29. Kf2 (29. Qe3 Ke8 $11)) 28... Qxf6 $16 {[%emt 0:01:38][%mdl 4096] Endgame KQB-KQN} 29. Qd5+ {[%emt 0:00:40]} Ke8 {[%emt 0:01:18]} 30. Qg8+ {[%emt 0:07:39]} Kd7 {[%emt 0:00:28]} 31. Qc4 {[%emt 0:00:11]} Qe5 {[%emt 0:06:26]} 32. Qa4+ {[%emt 0:03:54]} Kd8 {[%emt 0:00:21]} 33. Kf1 {[%emt 0:03:43]} g5 {[%emt 0:03:44]} 34. Ne2 {[%emt 0:00:29]} Qxb2 {[%emt 0:00:35]} 35. Qxa7 {[%emt 0:00:43]} Kc7 {[%emt 0:05:00]} 36. Qa5+ {[%emt 0:00:58]} Kb8 {[%emt 0:04:52]} 37. Qc3 {[%emt 0:00:17]} Bf6 {[%emt 0:00:46]} 38. Qxb2 {[%emt 0:00:50]} Bxb2 $11 {[%emt 0:00:02] KB-KN} 39. c4 {[%emt 0:00:18]} Ka7 {[%emt 0:00:04][%cal Oa7a6]} (39... Kc7 $5 {[%cal Rb2a3]}) 40. Ng3 {[%emt 0:00:34] The position is equal.} Be5 {[%emt 0:01:19]} 41. Ne4 {[%emt 0:00:07]} h6 42. Nd2 {[%emt 0:00:10]} Ka6 {[%emt 0:00:31]} 43. Nb3 {[%emt 0:00:10]} b5 {[%emt 0:00:10]} 44. Ke2 {[%emt 0:01:56]} Bb2 {[%emt 0:00:15]} 45. Nd2 {[%emt 0:00:22]} Bxa3 {[%emt 0:00:21]} 46. cxb5+ {[%emt 0:00:03]} Kxb5 {[%emt 0:01:05] Strongly threatening ...d5.} 47. Nc4 {[%emt 0:00:04]} Bc1 {[%emt 0:00:37] ...Bf4 would be deadly.} 48. Nxd6+ {[%emt 0:00:09]} Kc6 {[%emt 0:00:27]} 49. Nf7 {[%emt 0:00:13]} h5 {[%emt 0:00:04]} 50. Ne5+ {[%emt 0:05:41]} Kd5 {[%emt 0:00:15]} 51. Nd7 {[%emt 0:00:15]} Bb2 {[%emt 0:00:50] Prevents Nf6+.} 52. Nb6+ {[%emt 0:00:58]} Kd4 {[%emt 0:00:38]} 53. Nc4 {[%emt 0:00:23]} Bc1 {[%emt 0:00:11]} 54. Nd2 $1 {[%emt 0:02:44]} Ke5 {[%emt 0:01:03]} 55. Nb3 {[%emt 0:00:22]} Ba3 {[%emt 0:00:12]} 56. Ke3 {[%emt 0:00:32]} Bb2 {[%emt 0:00:24]} 57. Na5 {[%emt 0:00:20] And now Nc4+ would win.} Bd4+ {[%emt 0:00:30]} 58. Kf3 {[%emt 0:00:16]} Bg1 {[%emt 0:00:28]} 59. Nb3 {[%emt 0:00:31]} Kf5 {[%emt 0:00:20]} 60. g4+ {[%emt 0:00:15]} hxg4+ {[%emt 0:00:28]} 61. hxg4+ {[%emt 0:00:21]} Ke5 {[%emt 0:00:26]} 62. Kg2 {[%emt 0:00:56]} Bd4 {[%emt 0:01:28] Hoping for ...Kf4.} 63. Kf3 {[%emt 0:00:03]} Kd5 {[%emt 0:00:23]} 64. Ke2 {[%emt 0:01:19]} Bg1 {[%emt 0:01:30]} (64... Ke5 $5 {[%cal Re5f4]} 65. Kf3 Bg1 $11) 65. Kf3 {[%emt 0:00:20]} Ke5 {[%emt 0:00:24]} 66. Kg2 {[%emt 0:00:06]} Be3 {[%emt 0:00:31] Threatens to win with ...Kf4.} (66... Bd4 $5 {[%cal Re5f4]} 67. Kf3 Kd5 $11) 67. Kf3 {[%emt 0:00:03]} Bd4 {[%emt 0:00:17]} 68. Nd2 {[%emt 0:00:11]} Bg1 {[%emt 0:02:09]} 69. Ne4 {[%emt 0:00:14]} Kd4 {[%emt 0:00:13]} 70. Ke2 {[%emt 0:01:40]} c4 {[%emt 0:00:11]} 71. Nxg5 {[%emt 0:00:05] White wants to mate with Nf3+.} cxd3+ {[%emt 0:00:10]} 72. Kd1 {[%emt 0:00:06]} Be3 {[%emt 0:01:00]} 73. Nf3+ {[%emt 0:00:11] Weighted Error Value: White=0.10 (very precise) /Black=0.09 (flawless)} 1/2-1/2